bitfinex-derivatives/quotes_ETHF0:USTF0_20210110
["timestamp","ask_amount","ask_price","bid_price","bid_amount"]
[1610299221434,4.00959,1283.0,1282.5,1.6152]
[1610299221435,4.00959,1283.0,1282.6,10.0]
[1610299221634,7.1011727,1283.0,1282.6,10.0]
[1610299221834,7.1011727,1283.0,1281.2,0.2392756]
[1610299222038,4.00959,1283.0,1282.9,10.0]
[1610299222235,3.0924008,1283.0,1282.4,2.2327]
[1610299222835,8.4762089,1283.5,1282.9,4.00959]
[1610299223035,8.4762089,1283.5,1282.5,10.0]
[1610299223236,2.2922,1283.5,1282.9,10.0]
[1610299223440,2.2922,1283.5,1283.0,10.0]
[1610299223841,2.2922,1283.5,1282.4,2.2327]
[1610299223842,10.0161093,1283.5,1282.5,10.0]
[1610299224042,6.1841093,1283.5,1282.8,1.6904]
[1610299224248,6.1768465,1283.3,1282.8,1.6904]
[1610299224441,6.1768465,1283.3,1283.1,10.0]
[1610299224442,6.1741344,1283.2,1283.1,10.0]
[1610299224840,7.9331886,1283.2,1282.9,10.0]
[1610299225240,10.1807323,1283.0,1282.5,10.0]
[1610299225440,4.00959,1283.0,1282.5,10.0]
[1610299225642,4.00959,1283.0,1282.9,10.0]
[1610299225844,10.1787835,1283.0,1282.6,10.0]
[1610299226444,10.1787835,1283.0,1282.9,10.0]
[1610299226842,4.00959,1283.0,1282.9,10.0]
[1610299227041,11.9382277,1283.0,1282.9,10.0]
[1610299227243,15.3953635,1283.0,1282.9,10.0]
[1610299227442,16.9346635,1283.0,1282.9,10.0]
[1610299227642,15.3953635,1283.0,1282.9,10.0]
[1610299228046,11.3857735,1283.0,1282.9,10.0]
[1610299228342,9.6107496,1283.0,1282.9,10.0]
[1610299229241,13.6203396,1283.0,1282.9,10.0]
[1610299229442,7.4667258,1283.0,1282.9,10.0]
[1610299229643,11.8563474,1283.0,1282.9,10.0]
[1610299229841,8.3992116,1283.0,1282.9,10.0]
[1610299230042,10.1512684,1283.0,1282.9,10.0]
[1610299231047,11.8989567,1283.0,1282.9,10.0]
[1610299231445,15.3562089,1283.0,1282.9,10.0]
[1610299231647,7.4668422,1283.0,1282.9,10.0]
[1610299232048,17.3668807,1283.0,1282.9,10.0]
[1610299232645,19.1077016,1283.0,1282.9,10.0]
[1610299233048,9.4831422,1283.0,1282.9,10.0]
[1610299233445,20.6480147,1283.0,1282.9,10.0]
[1610299233845,11.0255422,1283.0,1282.8,10.0]
[1610299234046,11.0255422,1283.0,1282.8,9.3116]
[1610299234246,11.0255422,1283.0,1281.9,10.0]
[1610299234445,24.1280375,1283.0,1281.9,10.0]
[1610299234645,22.5856375,1283.0,1282.0,10.0]
[1610299234847,4.3670562,1282.1,1282.0,10.0]
[1610299235046,4.3670562,1282.1,1281.9,10.0]
[1610299235246,4.00959,1282.0,1281.9,10.0]
[1610299235447,4.00959,1282.0,1280.7,4.00959]
[1610299235848,3.0530749,1281.8,1280.8,10.0]
[1610299236047,3.0530749,1281.8,1280.9,10.0]
[1610299236446,3.0530749,1281.8,1280.9,2.2505]
[1610299236647,3.0530749,1281.8,1281.0,10.0]
[1610299237048,3.0530749,1281.8,1281.1,10.0]
[1610299237248,4.00959,1281.2,1281.1,10.0]
[1610299237448,4.00959,1281.2,1281.0,10.0]
[1610299237647,3.0513647,1281.9,1281.0,10.0]
[1610299237849,3.0430921,1281.7,1281.0,10.0]
[1610299238049,3.0430921,1281.7,1281.1,10.0]
[1610299238448,3.0341788,1281.8,1281.0,10.0]
[1610299238649,3.0330419,1281.7,1281.1,10.0]
[1610299239049,3.0263184,1281.8,1281.2,10.0]
[1610299239249,4.00959,1281.3,1281.2,12.0685]
[1610299239449,4.00959,1281.3,1281.2,2.0685]
[1610299239849,4.00959,1281.3,1281.2,12.0685]
[1610299241451,5.55609,1281.3,1281.2,12.0685]
[1610299241649,4.00959,1281.3,1281.2,12.0685]
[1610299242454,4.00959,1281.3,1281.2,10.4869]
[1610299242651,4.00959,1281.3,1281.2,6.6102]
[1610299242851,10.0630583,1281.3,1281.2,5.0389]
[1610299243051,10.0630583,1281.3,1281.2,3.3294]
[1610299243254,4.00959,1281.3,1281.2,3.3294]
[1610299243454,4.00959,1281.3,1281.2,1.7594]
[1610299243653,4.00959,1281.3,1280.9,6.3497]
[1610299243654,11.7784664,1281.3,1280.9,6.3497]
[1610299243853,6.0405257,1281.1,1280.9,5.1701]
[1610299244054,6.0405257,1281.1,1279.8,10.0]
[1610299244254,6.0367726,1281.0,1279.8,10.0]
[1610299244453,6.0367726,1281.0,1279.7,4.00959]
[1610299244653,3.0216009,1280.8,1279.9,10.0]
[1610299244854,3.0212687,1280.7,1279.9,11.8742]
[1610299245053,3.0212687,1280.7,1279.8,10.0]
[1610299245253,4.00959,1279.9,1279.8,10.0]
[1610299245453,4.00959,1279.9,1278.6,0.2396556]
[1610299245653,4.00959,1279.9,1278.5,4.00959]
[1610299245654,5.7287455,1279.9,1278.5,4.00959]
[1610299245853,53.7064,1279.7,1278.9,10.0]
[1610299246254,53.7064,1279.7,1278.9,12.3812]
[1610299246455,53.7064,1279.7,1278.9,2.3812]
[1610299246655,53.7064,1279.7,1279.0,10.0]
[1610299247055,53.7064,1279.7,1279.1,10.0]
[1610299247255,4.00959,1279.2,1279.1,10.0]
[1610299247655,4.00959,1279.2,1279.0,10.0]
[1610299248056,4.00959,1279.2,1279.1,10.0]
[1610299248256,4.00959,1279.2,1279.0,10.0]
[1610299248656,4.00959,1279.2,1279.1,10.0]
[1610299249057,3.49769,1279.2,1279.1,10.0]
[1610299249257,1.7177327,1279.5,1279.1,14.00959]
[1610299249457,1.7177327,1279.5,1279.2,10.0]
[1610299249656,55.4265539,1279.7,1279.2,13.5112]
[1610299249857,53.5684,1279.7,1279.3,10.0]
[1610299250057,0.9861,1279.9,1279.3,10.0]
[1610299250258,1.7207646,1280.1,1279.4,10.0]
[1610299250659,1.7212309,1280.2,1279.3,10.0]
[1610299250962,4.3073805,1280.4,1279.5,10.0]
[1610299250963,1.7219871,1280.4,1279.5,10.0]
[1610299251160,1.7219871,1280.4,1279.5,12.1473]
[1610299251362,1.7219871,1280.4,1279.5,2.1473]
[1610299251761,3.0168088,1280.6,1279.6,10.0]
[1610299251762,1.7207812,1280.3,1279.6,10.0]
[1610299251961,1.7207812,1280.3,1280.0,4.00959]
[1610299252163,1.7222889,1280.5,1280.0,6.28889]
[1610299252366,1.7228732,1280.6,1280.1,10.0]
[1610299252763,57.4563334,1280.8,1280.2,10.0]
[1610299253158,0.8807334,1280.8,1280.1,10.0]
[1610299253362,0.0970334,1280.8,1280.1,10.0]
[1610299253558,7.7492763,1280.9,1280.1,10.0]
[1610299253757,7.7492763,1280.9,1280.2,10.0]
[1610299253957,7.0082763,1280.9,1280.8,4.00959]
[1610299254159,1.3631763,1280.9,1280.8,5.88189]
[1610299254359,3.143543,1281.0,1280.8,15.88189]
[1610299254558,0.073743,1281.0,1280.8,15.88189]
[1610299254758,4.7794195,1281.2,1280.9,10.0]
[1610299254959,4.1766195,1281.2,1280.9,10.0]
[1610299255160,2.1689,1282.9,1281.0,10.0]
[1610299255560,2.1689,1282.9,1281.1,10.0]
[1610299255961,2.1689,1282.9,1281.6,4.00959]
[1610299256161,2.1689,1282.9,1281.6,5.91009]
[1610299256561,2.1689,1282.9,1281.7,10.0]
[1610299257161,2.1689,1282.9,1281.8,10.0]
[1610299257362,2.1689,1282.9,1281.7,10.0]
[1610299257762,17.032244,1282.2,1281.1,1.8911]
[1610299257964,17.032244,1282.2,1281.2,10.0]
[1610299258164,17.032244,1282.2,1281.3,10.0]
[1610299258364,18.603044,1282.2,1281.3,10.0]
[1610299258564,18.603044,1282.2,1281.2,10.0]
[1610299258765,17.032244,1282.2,1281.2,10.0]
[1610299258966,3.4574663,1282.1,1281.4,10.0]
[1610299259364,3.4574663,1282.1,1280.9,10.0]
[1610299259565,3.4574663,1282.1,1281.0,10.0]
[1610299259964,4.00959,1281.1,1280.9,10.0]
[1610299260364,7.7169264,1281.0,1280.5,2.1617]
[1610299260564,7.7169264,1281.0,1280.6,10.0]
[1610299261164,7.7169264,1281.0,1280.4,1.8995]
[1610299261364,7.7169264,1281.0,1280.5,10.0]
[1610299261566,3.4577902,1280.9,1280.5,10.0]
[1610299261766,3.4577902,1280.9,1280.6,10.0]
[1610299261967,4.00959,1280.7,1280.6,10.0]
[1610299262366,3.4577902,1280.9,1280.5,10.0]
[1610299262566,3.4577902,1280.9,1280.6,10.0]
[1610299262966,7.7256008,1281.0,1280.7,10.0]
[1610299263367,7.7254549,1280.8,1280.7,10.0]
[1610299263567,9.2700549,1280.8,1280.5,10.0]
[1610299263767,9.2700549,1280.8,1280.2,10.0]
[1610299263967,9.2700549,1280.8,1280.5,4.00959]
[1610299264167,9.2700549,1280.8,1280.3,10.0]
[1610299264367,7.7330872,1280.9,1280.3,10.0]
[1610299264568,9.4646153,1281.0,1280.2,10.0]
[1610299264768,9.4646153,1281.0,1280.1,10.0]
[1610299265167,9.4646153,1281.0,1280.2,10.0]
[1610299265368,7.7250836,1280.8,1280.2,10.0]
[1610299265668,3.0055076,1280.3,1280.1,10.0]
[1610299265867,3.0055076,1280.3,1280.2,10.0]
[1610299266268,3.0055076,1280.3,1280.1,10.0]
[1610299266468,3.0055076,1280.3,1279.0,54.3568]
[1610299266669,3.0036426,1280.4,1280.2,10.0]
[1610299267270,3.0036929,1280.3,1280.2,10.0]
[1610299267469,3.0036929,1280.3,1280.0,1.6272]
[1610299267671,4.2882041,1280.3,1280.0,1.6272]
[1610299267871,4.2882041,1280.3,1280.2,10.0]
[1610299268270,4.2882041,1280.3,1279.6,1.6228]
[1610299268471,7.7093926,1280.3,1280.2,10.0]
[1610299268870,7.7093926,1280.3,1279.6,1.6228]
[1610299269071,7.7093926,1280.3,1279.8,10.0]
[1610299269072,6.0017783,1280.3,1279.8,10.0]
[1610299269272,3.0034957,1280.1,1279.8,10.0]
[1610299269475,3.0034957,1280.1,1279.7,10.0]
[1610299269675,3.0034957,1280.1,1279.9,10.0]
[1610299269879,4.00959,1280.0,1279.9,10.0]
[1610299270078,4.00959,1280.0,1279.7,10.0]
[1610299270478,7.0112586,1280.0,1279.8,10.0]
[1610299270880,7.0112586,1280.0,1279.7,10.0]
[1610299271079,4.2862629,1280.1,1279.7,10.0]
[1610299271080,3.0003831,1279.9,1279.7,10.0]
[1610299271279,3.0003831,1279.9,1279.6,1.6228]
[1610299271478,2.9958756,1279.8,1279.3,1.5863]
[1610299271679,2.9958756,1279.8,1279.7,10.0]
[1610299271879,2.9958756,1279.8,1279.4,10.0]
[1610299272079,7.0054656,1279.8,1279.3,1.5863]
[1610299272280,8.5854656,1279.8,1279.3,1.5863]
[1610299272480,7.0054656,1279.8,1279.5,10.0]
[1610299272679,2.9845139,1279.7,1279.4,10.0]
[1610299272878,2.9845139,1279.7,1279.3,1.5863]
[1610299273082,2.9826615,1279.6,1279.5,10.0]
[1610299273479,4.5298615,1279.6,1279.3,1.5863]
[1610299273679,4.5278682,1279.6,1279.5,10.0]
[1610299273879,2.9806682,1279.6,1279.5,10.0]
[1610299274080,5.7101398,1279.6,1279.4,10.0]
[1610299274282,4.00959,1279.6,1279.4,10.0]
[1610299274481,4.00959,1279.6,1279.5,10.0]
[1610299274683,6.9872103,1279.6,1279.5,10.0]
[1610299275084,8.5298103,1279.6,1279.5,10.0]
[1610299275283,4.00959,1279.6,1279.5,10.0]
[1610299275684,8.2703658,1279.6,1279.5,10.0]
[1610299276686,9.955116,1279.6,1279.5,10.0]
[1610299276887,9.955116,1279.6,1277.3,0.2399168]
[1610299276888,9.955116,1279.6,1279.3,10.0]
[1610299277088,13.232016,1279.6,1278.7,10.0]
[1610299277287,5.9424816,1279.4,1278.7,10.0]
[1610299277486,1.694741,1278.8,1278.6,10.0]
[1610299277889,2.9700337,1278.9,1278.3,10.0]
[1610299278089,4.00959,1278.7,1276.8,4.24958]
[1610299278289,1.6935608,1278.5,1278.4,10.0]
[1610299278694,1.6935608,1278.5,1276.8,4.00959]
[1610299279194,1.6935608,1278.5,1277.0,10.0]
[1610299279195,1.3534241,1278.2,1277.0,10.0]
[1610299279394,1.6917801,1278.4,1276.8,4.00959]
[1610299279795,1.3535993,1278.2,1277.1,10.0]
[1610299279995,1.3535993,1278.2,1278.1,4.00959]
[1610299280198,1.357591,1278.3,1278.1,4.00959]
[1610299280395,1.357591,1278.3,1278.0,2.2265]
[1610299280596,5.3670228,1278.5,1278.0,2.2265]
[1610299280996,1.3578904,1278.6,1278.0,2.2265]
[1610299281196,1.3578904,1278.6,1278.1,10.0]
[1610299281396,1.3578904,1278.6,1278.2,10.0]
[1610299281596,56.6873,1278.4,1278.2,10.0]
[1610299281796,1.3577761,1278.7,1278.1,10.0]
[1610299281996,7.2588092,1278.8,1278.3,4.00959]
[1610299282196,7.2588092,1278.8,1278.3,16.04919]
[1610299282396,1.3592435,1278.7,1278.3,6.04919]
[1610299282797,1.3592435,1278.7,1278.4,10.0]
[1610299282996,1.0194861,1278.5,1278.4,10.0]
[1610299283396,1.0194861,1278.5,1278.3,2.0396]
[1610299283597,1.7397241,1278.5,1278.4,10.0]
[1610299283997,5.55289,1278.5,1278.4,10.0]
[1610299284398,7.6363647,1278.5,1278.4,10.0]
[1610299285400,2.263587,1278.5,1278.4,10.0]
[1610299285799,2.5657498,1278.5,1278.4,10.0]
[1610299285999,1.3632664,1278.7,1278.4,14.00959]
[1610299286000,1.0230888,1278.7,1278.4,14.00959]
[1610299286199,1.0230888,1278.7,1278.4,16.51259]
[1610299286400,0.6820035,1278.5,1278.4,16.51259]
[1610299286600,0.6820035,1278.5,1278.4,6.51259]
[1610299286800,0.4267168,1278.5,1278.4,6.51259]
[1610299287000,0.4267168,1278.5,1278.4,16.51259]
[1610299287404,2.6741997,1278.5,1278.4,16.51259]
[1610299287604,2.6741997,1278.5,1278.4,12.503]
[1610299287806,0.6831829,1278.5,1278.4,12.503]
[1610299288008,4.6927729,1278.5,1278.4,12.503]
[1610299288207,5.3745338,1278.5,1278.4,12.503]
[1610299288405,7.8614068,1278.5,1278.4,12.503]
[1610299289206,10.8397237,1278.5,1278.4,12.503]
[1610299289405,15.1038216,1278.5,1278.4,10.0]
[1610299289605,9.1382992,1278.5,1278.4,10.0]
[1610299289805,7.8620991,1278.5,1278.4,10.0]
[1610299290607,9.131292,1278.5,1278.4,10.0]
[1610299290806,4.8742013,1278.5,1278.4,10.0]
[1610299291106,9.13077,1278.5,1278.4,10.0]
[1610299291506,4.8742013,1278.5,1278.4,10.0]
[1610299291705,0.8646113,1278.5,1278.4,10.0]
[1610299291908,3.8488984,1278.5,1278.4,10.0]
[1610299292109,3.8488984,1278.5,1278.4,15.77599]
[1610299292309,1.3649096,1278.5,1278.4,15.77599]
[1610299292707,1.0248973,1278.5,1278.4,15.77599]
[1610299292909,2.2663104,1278.5,1278.4,11.7664]
[1610299293109,4.3185104,1278.5,1278.4,11.7664]
[1610299293309,4.3185104,1278.5,1278.4,10.0]
[1610299294108,6.9614456,1278.5,1278.4,10.0]
[1610299294709,12.9296889,1278.5,1278.4,10.0]
[1610299296010,7.2152352,1278.5,1278.4,10.0]
[1610299296410,5.9394249,1278.5,1278.4,10.0]
[1610299296611,2.9518556,1278.5,1278.4,10.0]
[1610299296809,0.8996556,1278.5,1278.4,10.0]
[1610299297311,2.9903477,1278.5,1278.4,10.0]
[1610299297710,1.7066306,1278.5,1278.4,10.0]
[1610299297910,4.1312306,1278.5,1278.4,10.0]
[1610299298112,9.4237233,1278.5,1278.4,10.0]
[1610299298310,7.5891261,1278.5,1278.4,10.0]
[1610299298710,11.8590079,1278.5,1278.4,10.0]
[1610299299110,7.5891261,1278.5,1278.4,10.0]
[1610299299310,13.5728961,1278.5,1278.4,10.0]
[1610299299711,11.8691083,1278.5,1278.4,10.0]
[1610299300010,7.5891261,1278.5,1278.4,10.0]
[1610299300812,11.871997,1278.5,1278.4,10.0]
[1610299301211,10.5911652,1278.5,1278.4,10.0]
[1610299301413,11.8727193,1278.5,1278.4,10.0]
[1610299301612,11.8727193,1278.5,1278.4,9.2023]
[1610299301814,13.5817735,1278.5,1278.4,8.4223]
[1610299302016,7.5891261,1278.5,1278.4,7.727]
[1610299302214,16.993586,1278.5,1278.4,6.5551]
[1610299302714,7.5891261,1278.5,1278.4,6.5551]
[1610299303115,16.9876025,1278.5,1278.4,6.5551]
[1610299303318,7.5891261,1278.5,1278.4,6.5551]
[1610299304116,16.8357042,1278.5,1278.4,6.5551]
[1610299304317,15.8504096,1278.5,1278.4,6.5551]
[1610299304621,7.7281692,1278.5,1278.4,6.5551]
[1610299306220,7.7281692,1278.5,1278.4,6.4191]
[1610299307218,20.9204235,1278.5,1278.4,6.4191]
[1610299307422,11.5250013,1278.5,1278.4,6.4191]
[1610299307623,13.1093013,1278.5,1278.4,6.4191]
[1610299307821,22.5104978,1278.5,1277.0,1.6387]
[1610299308221,4.00959,1277.2,1277.0,1.6387]
[1610299308422,4.564749,1277.2,1277.1,10.0]
[1610299308823,0.1281136,1277.2,1277.1,11.200591]
[1610299309022,0.5552485,1277.2,1277.1,11.200591]
[1610299309426,2.6887909,1277.2,1277.1,11.200591]
[1610299309824,2.3915477,1277.2,1277.1,11.200591]
[1610299310023,2.3915477,1277.2,1276.8,64.3338]
[1610299310225,8.5124444,1277.2,1276.8,64.3338]
[1610299310424,1.3653999,1277.0,1276.9,10.0]
[1610299310825,3.4464232,1277.1,1276.8,64.3338]
[1610299311026,2.9898915,1277.0,1276.9,10.0]
[1610299311426,2.9898915,1277.0,1276.6,4.00959]
[1610299311826,1.3662342,1277.0,1276.9,10.0]
[1610299312225,2.2112696,1276.9,1276.7,10.0]
[1610299312427,2.2112696,1276.9,1276.1,6.21219]
[1610299312624,2.2112696,1276.9,1276.2,10.0]
[1610299312826,1.7016234,1276.7,1276.2,10.0]
[1610299313026,0.553023,1276.4,1276.2,11.5813]
[1610299313228,0.553023,1276.4,1276.3,10.0]
[1610299313427,1.019561,1276.4,1276.3,10.0]
[1610299313629,1.019561,1276.4,1275.6,1.6212]
[1610299313828,1.6981107,1276.4,1275.6,1.6212]
[1610299314030,1.6981107,1276.4,1275.7,10.0]
[1610299314226,1.2310221,1276.0,1275.7,10.0]
[1610299314429,1.231032,1275.9,1275.7,10.0]
[1610299314628,1.231032,1275.9,1275.8,10.0]
[1610299314828,1.2522589,1275.9,1275.8,10.0]
[1610299315028,1.2522589,1275.9,1275.7,1.2018455]
[1610299315227,1.0187853,1276.1,1275.7,1.2018455]
[1610299315228,1.2533719,1276.1,1275.7,1.2018455]
[1610299315428,1.0180923,1275.8,1275.7,1.2018455]
[1610299315931,1.0180923,1275.8,1275.7,10.0]
[1610299316130,0.5737597,1275.9,1275.7,10.0]
[1610299316528,1.0189048,1275.8,1275.5,4.00959]
[1610299316929,1.0189048,1275.8,1275.6,10.0]
[1610299317332,1.2526507,1275.7,1275.6,12.2841]
[1610299317531,5.3683978,1276.0,1275.7,10.0]
[1610299317532,4.00959,1276.0,1275.7,10.0]
[1610299317932,4.00959,1276.0,1275.6,12.2841]
[1610299318131,0.5102002,1276.3,1275.6,2.2841]
[1610299318333,0.0850638,1276.5,1275.8,10.0]
[1610299318532,1.0207655,1276.7,1275.8,10.0]
[1610299318735,1.3606762,1276.9,1275.9,10.0]
[1610299318932,1.3609029,1277.1,1275.9,12.0143]
[1610299319131,1.3609029,1277.1,1275.9,2.0143]
[1610299319532,1.7011287,1277.2,1275.9,2.0143]
[1610299319533,1.3611321,1277.2,1276.0,10.0]
[1610299319732,1.3589196,1277.1,1276.1,10.0]
[1610299320132,3.691312,1277.1,1276.0,11.201078]
[1610299320533,1.3589972,1277.2,1276.1,10.0]
[1610299320933,1.3590782,1277.3,1276.2,10.0]
[1610299321133,1.3590782,1277.3,1276.2,13.2622]
[1610299321336,1.3590782,1277.3,1276.2,3.2622]
[1610299321532,1.3609282,1277.4,1276.3,10.0]
[1610299322133,1.3609282,1277.4,1276.4,10.0]
[1610299322533,1.3609282,1277.4,1276.3,10.0]
[1610299322731,1.3609282,1277.4,1276.4,10.0]
[1610299322933,5.2950563,1277.4,1276.4,10.0]
[1610299323133,5.2950563,1277.4,1276.3,10.0]
[1610299323334,1.3633597,1277.1,1276.3,10.0]
[1610299323536,1.3630514,1276.9,1276.4,10.0]
[1610299323733,1.3630514,1276.9,1276.3,10.0]
[1610299323936,1.3650437,1277.1,1276.3,10.0]
[1610299324135,1.3650437,1277.1,1276.5,10.0]
[1610299324335,1.3650437,1277.1,1276.3,10.0]
[1610299324534,1.3650437,1277.1,1276.5,2.1606]
[1610299324735,3.7195531,1277.2,1276.6,10.0]
[1610299324935,1.3658975,1277.1,1276.6,10.0]
[1610299325136,3.4218975,1277.1,1276.7,10.0]
[1610299325336,3.609,1277.1,1276.7,10.0]
[1610299325536,2.056,1277.1,1276.3,10.0]
[1610299325936,2.056,1277.1,1276.2,1.6914]
[1610299326136,2.4694313,1277.0,1276.4,10.0]
[1610299326337,2.4694313,1277.0,1276.3,10.0]
[1610299326538,1.3651551,1277.2,1276.5,10.0]
[1610299326937,2.9912827,1277.4,1276.5,10.0]
[1610299326938,1.3646195,1277.4,1276.5,11.8589]
[1610299327137,1.3646195,1277.4,1276.5,1.8589]
[1610299327337,1.7057743,1277.5,1276.6,10.0]
[1610299327737,1.7057743,1277.5,1276.5,1.8589]
[1610299327738,1.3653844,1277.7,1276.7,10.0]
[1610299328138,1.7067306,1277.8,1276.6,10.0]
[1610299328538,1.7067306,1277.8,1276.5,1.8589]
[1610299328539,1.364764,1277.5,1276.7,11.2008555]
[1610299328739,1.364764,1277.5,1276.8,10.0]
[1610299328939,3.394664,1277.5,1276.8,10.0]
[1610299329142,1.3633764,1277.3,1276.9,10.0]
[1610299329340,1.3633764,1277.3,1277.0,4.00959]
[1610299329542,3.469954,1277.1,1277.0,4.00959]
[1610299329744,2.1073,1277.1,1277.0,4.00959]
[1610299329942,2.1073,1277.1,1277.0,14.00959]
[1610299330141,4.6059844,1277.1,1277.0,14.00959]
[1610299330542,5.9688288,1277.1,1277.0,14.00959]
[1610299330943,4.6059844,1277.1,1277.0,10.0]
[1610299331143,6.3090416,1277.1,1277.0,10.0]
[1610299331944,6.3090416,1277.1,1277.0,14.00959]
[1610299332544,7.5920671,1277.1,1277.0,14.00959]
[1610299333245,4.6059844,1277.1,1277.0,14.00959]
[1610299333646,5.971464,1277.1,1277.0,14.00959]
[1610299333846,2.1073,1277.1,1277.0,14.00959]
[1610299334044,1.3662204,1277.3,1277.0,10.0]
[1610299334250,0.2135668,1277.3,1277.0,12.396]
[1610299334444,0.2135668,1277.3,1277.1,10.0]
[1610299334645,1.5548,1277.3,1277.2,4.00959]
[1610299335046,0.2135068,1277.3,1277.2,14.00959]
[1610299335246,1.7068579,1277.5,1277.2,14.00959]
[1610299335445,2.4421884,1277.3,1277.2,14.00959]
[1610299335851,1.706745,1277.3,1277.2,14.00959]
[1610299336047,4.1504836,1277.3,1277.2,14.00959]
[1610299336448,1.706745,1277.3,1277.2,14.00959]
[1610299337249,1.706745,1277.3,1277.2,10.0]
[1610299337648,6.7086778,1277.3,1277.2,10.0]
[1610299338048,7.5269385,1277.3,1277.2,10.0]
[1610299338448,11.6693552,1277.3,1277.2,10.0]
[1610299338649,10.1140552,1277.3,1277.2,10.0]
[1610299339048,7.6725239,1277.3,1277.2,10.0]
[1610299339448,11.827988,1277.4,1277.2,10.0]
[1610299339449,9.3751911,1277.4,1277.2,10.0]
[1610299339649,10.1282637,1277.3,1277.2,10.0]
[1610299339849,10.1282637,1277.3,1275.9,2.0143]
[1610299340050,9.7967905,1277.3,1275.9,1.556]
[1610299340249,13.8063805,1277.3,1277.2,4.00959]
[1610299340450,10.4028533,1277.3,1277.2,4.00959]
[1610299340650,12.8781542,1277.3,1277.2,14.00959]
[1610299341450,8.6079909,1277.3,1277.2,14.00959]
[1610299341649,10.1509909,1277.3,1277.2,14.00959]
[1610299341850,14.4272611,1277.3,1277.2,14.00959]
[1610299342250,10.1509909,1277.3,1277.2,14.00959]
[1610299342453,10.1509909,1277.3,1277.2,10.0]
[1610299342951,8.6079909,1277.3,1277.2,10.0]
[1610299343251,14.5927742,1277.3,1277.2,10.0]
[1610299343452,44.5927742,1277.3,1277.2,10.0]
[1610299343652,48.0001201,1277.3,1277.2,10.0]
[1610299343852,18.0001201,1277.3,1277.2,5.1768]
[1610299344053,22.3147402,1277.3,1277.2,4.5068]
[1610299344252,10.1694909,1277.3,1277.2,4.5068]
[1610299344452,8.6079909,1277.3,1277.2,4.5068]
[1610299344654,18.0057314,1277.3,1277.2,2.9651]
[1610299344852,48.0057314,1277.3,1276.7,4.00959]
[1610299345052,36.13269,1277.3,1276.7,4.00959]
[1610299345252,7.6794037,1276.9,1276.8,10.0]
[1610299345452,9.9171037,1276.9,1276.8,10.0]
[1610299345652,2.2377,1276.9,1275.7,10.0]
[1610299345851,30.0,1276.8,1275.7,10.0]
[1610299346053,1.3632648,1276.2,1275.3,58.2542]
[1610299346254,2.006,1276.2,1275.8,10.0]
[1610299346654,2.7575743,1276.1,1275.3,58.2542]
[1610299346853,32.7575743,1276.1,1275.9,10.0]
[1610299347053,2.7575743,1276.1,1275.9,10.0]
[1610299347255,2.7575743,1276.1,1275.8,10.0]
[1610299347454,4.2540712,1276.0,1275.3,56.1737]
[1610299347654,4.2540712,1276.0,1275.9,10.0]
[1610299347854,5.952075,1276.0,1275.4,10.0]
[1610299348255,1.6998281,1275.7,1275.5,10.0]
[1610299348457,2.9772379,1275.6,1275.5,10.0]
[1610299348657,34.5629379,1275.6,1275.4,10.0]
[1610299348857,40.1529497,1275.6,1275.5,8.4319]
[1610299349258,5.9059317,1275.6,1275.5,8.4319]
[1610299349457,7.4612317,1275.6,1275.4,10.0]
[1610299349658,24.4871836,1275.6,1275.4,10.0]
[1610299349860,7.6275086,1275.5,1275.1,10.0]
[1610299350057,7.6275086,1275.5,1275.0,1.3657]
[1610299350557,7.6275086,1275.5,1275.1,8.6343]
[1610299350757,7.6275086,1275.5,1275.2,8.0639]
[1610299350958,7.6200598,1275.3,1275.2,8.0639]
[1610299351158,9.5635598,1275.3,1275.1,10.0]
[1610299351358,9.5635598,1275.3,1275.0,1.3657]
[1610299351758,9.5635598,1275.3,1275.1,10.0]
[1610299351959,9.5635598,1275.3,1275.1,8.86]
[1610299352262,9.5635598,1275.3,1275.1,8.6749]
[1610299352463,30.0,1275.2,1275.0,1.3657]
[1610299352666,9.5635598,1275.3,1275.0,1.3657]
[1610299353066,9.5635598,1275.3,1274.9,8.03]
[1610299353266,1.9435,1275.3,1274.9,6.3513]
[1610299353467,30.0,1275.2,1274.9,6.3513]
[1610299353666,30.0,1275.2,1275.0,9.553]
[1610299353867,30.0,1275.2,1274.5,10.0]
[1610299354067,4.772564,1275.1,1273.2,1.8027]
[1610299354266,4.772564,1275.1,1272.3,2.0263]
[1610299354267,30.0,1275.0,1272.3,2.0263]
[1610299354466,58.08,1272.9,1272.3,2.0263]
[1610299354666,30.0,1272.8,1272.1,0.2408947]
[1610299354868,30.0,1272.8,1272.4,1.3844]
[1610299355068,30.0,1272.8,1271.6,2.4284]
[1610299355266,59.928,1272.9,1272.2,10.0]
[1610299355267,61.2759031,1272.9,1272.2,10.0]
[1610299355667,1.3446128,1272.3,1272.2,4.6498]
[1610299355866,1.3446128,1272.3,1271.7,10.0]
[1610299356065,3.2165128,1272.3,1271.7,8.4832]
[1610299356267,1.8719,1272.3,1271.7,8.2511]
[1610299356465,1.8719,1272.3,1272.2,10.0]
[1610299356666,1.8719,1272.3,1272.2,5.0686]
[1610299356866,1.8719,1272.3,1270.3,0.4822666]
[1610299357268,1.8719,1272.3,1270.3,0.3822666]
[1610299357769,1.8719,1272.3,1270.4,10.0]
[1610299357968,1.8719,1272.3,1270.4,9.2484]
[1610299358167,1.8719,1272.3,1270.2,0.7233998]
[1610299358371,1.8719,1272.3,1269.6,1.9219]